[Event "European Women-ch 2023"]
[Site "Petrovac"]
[Date "2023.03.18"]
[Round "1.26"]
[White "Maione, Melissa"]
[Black "Zhukova, Natalia"]
[Result "0-1"]
[ECO "C78"]
[WhiteElo "2028"]
[BlackElo "2322"]
[Annotator "TA"]
[PlyCount "124"]
[EventDate "2023.03.15"]
[EventType "swiss"]
[EventCountry "MNE"]
[SourceTitle "playchess.com"]
[Source "ChessBase"]
[SourceQuality "1"]
[TimeControl "40/5400+30:1800+30"]

{[%evp 19,124,33,33,26,38,35,31,-11,-10,-16,38,13,66,3,35,31,44,-119,-97,-113,-118,-109,-118,-109,-27,-24,-16,-23,-26,-88,19,10,39,10,10,10,14,0,16,0,39,37,37,0,37,62,63,35,35,31,31,36,35,42,40,0,0,0,0,0,0,0,0,-56,-45,-49,0,0,0,0,0,-246,-102,-557,-815,-29981,-29982,-29987,-29988,-497,0,0,0,-460,-139,-108,-102,-1557,-312,-312,-312,-312,0,-60,0,-312,-297,-376,-343,-593,-512,-29969,-265,-29988,-29973,-29984,-29970]} 1. e4 {[%emt 0:00:03]} e5 {[%emt 0:00:12]} 2. Nf3 {[%emt 0:00:11]} Nc6 {[%emt 0:00:10]} 3. Bb5 {[%emt 0:00:14]} a6 {[%emt 0:00:17]} 4. Ba4 {[%emt 0:00:13]} Nf6 {[%emt 0:00:27]} 5. O-O {[%emt 0:00:23]} b5 {[%emt 0:00:25]} 6. Bb3 {[%emt 0:00:47]} Bc5 {[%emt 0:00:17]} 7. a4 {[%emt 0:02:47]} Rb8 {[%emt 0:00:24]} 8. c3 {[%emt 0:01:32]} d6 {[%emt 0:00:23]} 9. d4 {[%emt 0:01:59]} Bb6 {[%emt 0:00:19]} 10. axb5 {[%emt 0:01:55]} axb5 {[%emt 0:00:10]} 11. Qd3 {[%emt 0:05:11] C78: Ruy Lopez: Archangelsk and Möller Defences.} O-O {[%emt 0:03:45]} 12. Bg5 {[%emt 0:01:48]} h6 {[%emt 0:14:08]} 13. Bh4 {[%emt 0:07:01] White is slightly better. outshines the older 13.Bxf6.} (13. Qxb5 hxg5 14. Qxc6 Bb7 $17) 13... g5 $1 {[%emt 0:43:31] has lost popularity (13...exd4).} 14. Bg3 {[%emt 0:10:08]} (14. Qxb5 $2 Bd7 15. Qd3 gxh4 $19) 14... Qe7 {[%emt 0:12:52] [#]} ({Better is} 14... Nh5 $11) 15. Na3 $146 {[%emt 0:14:23]} (15. Qxb5 {feels hotter.} Bd7 16. Qd3 exd4 17. e5) ({Predecessor:} 15. Nbd2 Bd7 16. Rfe1 Nh5 17. Nf1 Nf4 18. Qd2 b4 19. Bd5 bxc3 20. bxc3 Ra8 21. Rxa8 Rxa8 {1-0 Sokolov,A (2585)-Swinkels,R (2428) Cappelle op 23rd 2007 (2)}) 15... Bg4 {[%emt 0:07:41]} (15... exd4 $11 16. e5 Nxe5 17. Bxe5 {[%mdl 64] Remove Defender} (17. Qxb5 $2 Nxf3+ 18. gxf3 dxc3 $19) 17... dxe5 18. Qg6+ (18. Nxb5 $2 e4 $19) 18... Kh8 19. Qxh6+ Nh7) 16. d5 {[%emt 0:06:46]} (16. Qxb5 $14 Bd7 17. Qd3) 16... Na5 {[%emt 0:00:49]} 17. Bd1 {[%emt 0:00:39]} Bd7 {[%emt 0:02:15][%cal Oa5c4]} 18. h4 $2 {[%emt 0:05:50]} (18. Nd2 $14 {stays ahead.}) 18... Nh5 {[%emt 0:08:14]} 19. Nd2 {[%emt 0:06:36]} Nf4 {[%emt 0:01:56]} 20. Bxf4 {[%emt 0:01:07]} gxf4 {[%emt 0:00:03]} 21. b4 {[%emt 0:05:31]} Nc4 {[%emt 0:00:37]} (21... Nb7 $17 {Threatens to win with ...Kh8.} 22. Qe2 Qxh4) 22. Naxc4 $11 {[%emt 0:01:13]} bxc4 {[%emt 0:00:02]} 23. Qf3 {[%emt 0:00:15]} Qxh4 {[%emt 0:01:12]} 24. Nxc4 {[%emt 0:02:22]} (24. Qh5 $1 $11 {keeps the balance.} Qg5 25. Nxc4 (25. Qxg5+ hxg5 26. Ba4 Bxa4 $15)) 24... Kh8 {[%emt 0:01:15]} (24... Bb5 $17 25. Be2 Bxc4 26. Bxc4 Kh8) 25. Nxb6 {[%emt 0:01:25]} Rxb6 {[%emt 0:00:33]} 26. Qh5 {[%emt 0:01:44]} (26. Ra7 {is interesting.} Rc8 27. Qh5 Qxh5 28. Bxh5 f5 29. exf5 Bxf5 30. Rfa1) 26... Qxh5 {[%emt 0:00:46]} 27. Bxh5 {[%emt 0:00:08] Black should prevent Ra7.} Rb7 {[%emt 0:00:22] Inhibits Ra7.} 28. Ra5 {[%emt 0:01:55]} Kg7 {[%emt 0:00:26]} 29. Rfa1 {[%emt 0:02:13]} Bb5 {[%emt 0:00:53]} (29... f5 $5 {[%cal Rf5e4]}) 30. Ra7 {[%emt 0:02:40]} Rfb8 {[%emt 0:00:05][%cal Of7f5]} 31. Bd1 {[%emt 0:04:11]} Kf6 {[%emt 0:00:15]} 32. Bg4 {[%emt 0:01:24]} Ke7 {[%emt 0:00:32]} 33. R7a5 {[%emt 0:02:11]} Rg8 {[%emt 0:00:25]} 34. f3 {[%emt 0:00:53]} Bd7 {[%emt 0:00:50]} 35. Bxd7 {[%emt 0:00:28]} Kxd7 $14 {[%emt 0:00:02][%mdl 4096] Endgame KRR-KRR} 36. Kf2 {[%emt 0:00:11]} Rbb8 {[%emt 0:01:25]} 37. b5 {[%emt 0:01:25]} Rg6 {[%emt 0:00:29]} 38. c4 {[%emt 0:00:34]} Rbg8 {[%emt 0:00:28]} 39. Rg1 {[%emt 0:00:18]} Kc8 {[%emt 0:00:29]} 40. Ra8+ {[%emt 0:00:00]} Kb7 {[%emt 0:00:00]} 41. Ra2 {[%emt 0:08:30]} ({White should try} 41. Rxg8 $11 Rxg8 42. Rh1) 41... h5 {[%emt 0:08:13]} 42. Kf1 {[%emt 0:02:18]} Kb6 {[%emt 0:00:37]} (42... Rg5 $15 {deserves consideration.}) 43. Ra6+ $11 {[%emt 0:03:08]} Kc5 {[%emt 0:02:13]} 44. Rc6+ {[%emt 0:01:28]} Kd4 {[%emt 0:00:02]} 45. Rxc7 $2 {[%emt 0:00:37]} (45. Kf2 $1 $11 {and White is okay.}) 45... Ra8 {[%emt 0:00:19]} (45... h4 $1 $19 46. Ra7 (46. Rxf7 $2 {too greedy.} Ra8 $19) (46. Kf2 $2 h3 $19) 46... h3) 46. Rc6 $2 {[%emt 0:05:42][%mdl 8192]} (46. Rxf7 $2 {perishes.} Ra1+ 47. Kf2 Ra2+ 48. Ke1 Ke3 $19) (46. b6 $17 {nothing else works.}) 46... Ra1+ $19 {[%emt 0:01:50]} 47. Kf2 {[%emt 0:00:07]} Ra2+ {[%emt 0:00:09]} 48. Kf1 {[%emt 0:00:05]} Rb2 {[%emt 0:12:54]} 49. Ra6 {[%emt 0:03:29]} Rb1+ {[%emt 0:00:39]} ({And not} 49... Kxc4 50. Ra4+ Kc5 51. Ra1 $19) 50. Kf2 {[%emt 0:00:08]} Rb2+ {[%emt 0:00:03]} 51. Kf1 $1 {[%emt 0:00:08]} Kxc4 $2 {[%emt 0:02:55]} (51... h4 $19 {is more deadly.} 52. Ra1 Rg3) 52. b6 $17 {[%emt 0:01:18]} h4 {[%emt 0:02:00][%cal Oh4h3] ...h3! is the strong threat. Black is much more active.} 53. Ra7 $2 {[%emt 0:02:05][%mdl 8192]} (53. b7 $17) 53... Rxb6 $2 {[%emt 0:01:11]} (53... h3 {( -> ...h2)} 54. Ra4+ Kc5) 54. Ra4+ $19 {[%emt 0:03:40]} Kc3 {[%emt 0:01:25] Strongly threatening ...Rb1+.} 55. Ra3+ {[%emt 0:00:24]} Kc4 $2 {[%emt 0:01:20]} (55... Kb2 $1 $19 {[%cal Rb2a3]} 56. Rd3 h3) 56. Ra4+ $15 {[%emt 0:00:11]} Kc3 $2 {[%emt 0:00:01][%mdl 8192]} (56... Rb4 $15 57. Rxb4+ Kxb4) 57. Ra3+ $19 {[%emt 0:00:06] [#]} Kb2 $1 {[%emt 0:00:38]} 58. Ra7 {[%emt 0:00:12] [#]} Rb3 $1 {[%emt 0:01:19]} 59. Rxf7 $2 {[%emt 0:01:41]} (59. Rh1 Kc3 60. Ra1) 59... h3 {[%emt 0:01:41][%cal Bh4h3,Bh3h2][%mdl 32]} 60. Rh7 {[%emt 0:02:46]} (60. gxh3 $19 Rxf3+ 61. Ke2 Re3+ 62. Kf2 Rxg1 63. Kxg1 Rxh3 64. Rc7) 60... Rg3 $2 {[%emt 0:01:01]} (60... Kc3 {mates} 61. Rxh3 Rb1+ 62. Kf2 Rb2+ {[%mdl 64] Skewer} 63. Ke1 Kd3 64. Rh7 Ke3 65. Kd1 Rb1+ {[%mdl 64] Skewer} 66. Kc2 Rxg1 67. g4 fxg3 68. Rb7 g2 69. Rb3+ Kf4 70. Rb8 Rc1+ {[%mdl 64] Decoy, Clearance, Promotion} 71. Kxc1 g1=Q+ 72. Kb2 Rg2+ 73. Ka3 Qa1+ 74. Kb4 Rb2+ {[%mdl 64] Skewer} 75. Kc4 Qc1+ 76. Kd3 Rd2#) 61. Rh6 $2 {[%emt 0:02:05]} (61. Rxh3 $19 Rxh3 62. gxh3 Rxf3+ 63. Kg2) 61... Rc3 {[%emt 0:00:26]} 62. Rxd6 {[%emt 0:04:25]} h2 {[%emt 0:00:33] Weighted Error Value: White=0.63/Black=0.67} 0-1

[Event "European Women-ch 2023"]
[Site "Petrovac"]
[Date "2023.03.18"]
[Round "1.27"]
[White "Klek, Hanna Marie"]
[Black "Donghvani, Nia"]
[Result "1-0"]
[ECO "B33"]
[WhiteElo "2314"]
[BlackElo "2025"]
[Annotator "TA"]
[PlyCount "85"]
[EventDate "2023.03.15"]
[EventType "swiss"]
[EventCountry "MNE"]
[SourceTitle "playchess.com"]
[Source "ChessBase"]
[SourceQuality "1"]
[TimeControl "40/5400+30:1800+30"]

{[%evp 24,85,14,27,14,14,29,19,32,32,32,32,18,0,32,32,29,29,38,30,41,32,56,36,125,105,106,133,235,246,242,248,248,239,242,259,381,259,244,220,555,566,633,627,612,636,694,589,605,517,531,407,503,508,706,690,618,610,1249,1149,29982,29983,29983,29984]} 1. e4 {[%emt 0:00:03]} c5 {[%emt 0:00:03]} 2. Nf3 {[%emt 0:00:05]} Nc6 {[%emt 0:00:15]} 3. d4 {[%emt 0:00:07]} cxd4 {[%emt 0:00:04]} 4. Nxd4 {[%emt 0:00:06]} Nf6 {[%emt 0:00:42]} 5. Nc3 {[%emt 0:00:09]} e5 {[%emt 0:00:03]} 6. Ndb5 {[%emt 0:00:08]} d6 {[%emt 0:00:05]} 7. Bg5 {[%emt 0:00:11]} a6 {[%emt 0:00:15]} 8. Na3 {[%emt 0:00:14]} b5 {[%emt 0:00:04]} 9. Nd5 {[%emt 0:01:52]} Be7 {[%emt 0:00:33]} 10. Bxf6 {[%emt 0:00:09]} Bxf6 {[%emt 0:00:05]} 11. c3 {[%emt 0:01:14]} Rb8 {[%emt 0:01:46]} 12. Nc2 {[%emt 0:00:08]} Bg5 {[%emt 0:01:12]} 13. a4 {[%emt 0:00:26]} bxa4 {[%emt 0:01:18] B33: Sicilian: Pelikan and Sveshnikov Variations.} 14. Ncb4 {[%emt 0:00:14]} Nxb4 {[%emt 0:00:54]} 15. cxb4 $1 {[%emt 0:00:14][%mdl 4] is more profitable than 15.Nxb4 at the moment.} (15. Nxb4 $5 {[%cal Rb4c6]} Bd7 16. Bxa6 $11 (16. Qxd6 Be7 $15)) 15... O-O {[%emt 0:00:52] The position is equal.} 16. Rxa4 {[%emt 0:04:01]} a5 {[%emt 0:01:10]} 17. h4 {[%emt 0:07:13]} (17. Rxa5 $2 Rxb4 18. Ra4 Rxb2 $19) (17. bxa5 Rxb2 18. Qa1 Rc2 $17) 17... Bh6 {[%emt 0:04:01]} 18. b5 {[%emt 0:05:03]} (18. Rxa5 $2 Rxb4 19. Ra8 Rxe4+ 20. Be2 Rd4 $19) ({Much worse is} 18. bxa5 Rxb2 19. Bc4 Bd2+ 20. Kf1 Bd7 $17) 18... Bd7 {[%emt 0:00:07]} 19. Nc3 {[%emt 0:02:07]} d5 {[%emt 0:00:39][%mdl 64] Deflection} 20. exd5 {[%emt 0:03:06]} f5 {[%emt 0:00:06]} 21. Be2 {[%emt 0:14:22]} Kh8 {[%emt 0:00:15]} 22. g3 {[%emt 0:02:14][%cal Bg2g3,Bg3g4][%mdl 32] [#]} Be8 $146 {[%emt 0:40:12]} ({Predecessor:} 22... f4 23. g4 f3 24. Bxf3 Bc1 25. Qxc1 Rxf3 26. Re4 Qb6 27. Qd2 Rbf8 28. Rh2 Bxb5 {½-½ Miron,L (2498)-Nisipeanu,L (2633) ROM-chT Oradea 2022 (7.26)}) 23. Kf1 {[%emt 0:05:20]} Rb6 {[%emt 0:14:34] White stays focused until the end.} (23... Rb7 $1 $14) 24. Rxa5 $16 {[%emt 0:06:02]} f4 {[%emt 0:02:40] [#]} 25. g4 {[%emt 0:01:11]} e4 {[%emt 0:18:37]} (25... f3 $16 {was called for.} 26. Bd3 (26. Bxf3 $2 {too greedy.} Rbf6 $19 {[%mdl 64] Discovered Attack}) 26... g6) 26. Nxe4 $18 {[%emt 0:08:02] Strongly threatening g5.} f3 {[%emt 0:00:03]} 27. Bxf3 {[%emt 0:01:23] g5 would be deadly.} Bxb5+ {[%emt 0:00:05]} 28. Kg2 {[%emt 0:04:28]} Bf4 {[%emt 0:00:07]} 29. Qd4 {[%emt 0:03:49] Ra7 is the strong threat.} Qb8 {[%emt 0:10:06] [#] Wards off Ra7} (29... Bb8 $142 30. b4 Bd7) 30. Ra8 $3 {[%emt 0:11:39][%mdl 512]} Qxa8 {[%emt 0:00:15]} 31. Qxb6 {[%emt 0:00:07]} Bd3 {[%emt 0:04:07]} (31... Qxd5 32. Rd1 (32. Nc3 Qxf3+ 33. Kxf3 Bc7+ 34. Ke4 Bxb6 $16) 32... Qc4) 32. Nc5 {[%emt 0:02:47]} Bc4 {[%emt 0:00:32]} 33. Qc6 {[%emt 0:01:20]} Qxc6 {[%emt 0:00:38]} 34. dxc6 {[%emt 0:00:06]} Bd6 {[%emt 0:00:20]} 35. Ne4 {[%emt 0:05:39]} Be5 {[%emt 0:00:23]} 36. Nd2 {[%emt 0:03:23][%cal Be4d2,Bd2b3,Bb3c5][%mdl 32]} Bb5 {[%emt 0:00:30]} 37. Rb1 {[%emt 0:03:14]} Bd3 {[%emt 0:00:48]} 38. Rd1 {[%emt 0:01:12]} Bxb2 {[%emt 0:00:24]} 39. Nb3 {[%emt 0:00:24]} Bc4 {[%emt 0:00:38]} 40. Nc5 {[%emt 0:00:00] Hoping for c7.} h5 {[%emt 0:00:00]} 41. c7 {[%emt 0:03:41] White wants to mate with Rd8.} hxg4 {[%emt 0:01:55]} 42. Rd8 {[%emt 0:01:59]} gxf3+ {[%emt 0:00:05]} 43. Kg1 {[%emt 0:00:13] Weighted Error Value: White=0.22 (precise) /Black=0.41} 1-0

[Event "European Women-ch 2023"]
[Site "Petrovac"]
[Date "2023.03.18"]
[Round "1.28"]
[White "Ismayil, Malak"]
[Black "Garcia Martin, Marta"]
[Result "0-1"]
[ECO "B52"]
[WhiteElo "2011"]
[BlackElo "2306"]
[Annotator "TA"]
[PlyCount "98"]
[EventDate "2023.03.15"]
[EventType "swiss"]
[EventCountry "MNE"]
[SourceTitle "playchess.com"]
[Source "ChessBase"]
[SourceQuality "1"]
[TimeControl "40/5400+30:1800+30"]

{[%evp 14,98,9,7,30,25,23,16,24,20,21,0,0,0,14,0,0,0,33,0,10,0,14,-80,-79,-84,-75,-84,-87,-80,-81,-123,-115,-137,-140,-156,-150,-150,-143,-197,-132,-260,-282,-327,-318,-633,-629,-624,-618,-598,-586,-784,-777,-819,-806,-824,-815,-805,-799,-814,-791,-962,-635,-1130,-753,-735,-717,-784,-779,-756,-662,-901,-783,-730,-683,-664,-646,-680,-664,-29993,-29994,-29994,-29995,-29995,-29996,-29996,-29997]} 1. e4 {[%emt 0:00:11]} c5 {[%emt 0:00:15]} 2. Nf3 {[%emt 0:00:12]} d6 {[%emt 0:00:13]} 3. Bb5+ {[%emt 0:00:34]} Bd7 {[%emt 0:00:15]} 4. Bxd7+ {[%emt 0:00:05]} Nxd7 {[%emt 0:00:08]} 5. O-O {[%emt 0:04:33]} Ngf6 {[%emt 0:00:19]} 6. Re1 {[%emt 0:01:57]} e6 {[%emt 0:00:44]} 7. d4 {[%emt 0:03:45]} cxd4 {[%emt 0:00:22]} 8. Nxd4 {[%emt 0:01:29]} Be7 {[%emt 0:02:00] B52: Sicilian: Moscow Variation with 3...Bd7.} 9. c4 {[%emt 0:02:19]} O-O {[%emt 0:05:19]} 10. b3 {[%emt 0:08:06]} a6 {[%emt 0:00:20] The position is equal.} 11. Nc3 {[%emt 0:03:27]} Rc8 {[%emt 0:00:31][%cal Ob7b5]} 12. a4 {[%emt 0:00:53] [#]} Qa5 $146 {[%emt 0:22:16]} ({Predecessor:} 12... Ne5 13. Ba3 Qc7 14. Qc2 Rfd8 15. Rad1 h6 16. h3 Ng6 17. Re3 d5 18. Bxe7 Nxe7 19. cxd5 exd5 20. e5 Ne4 21. Nxe4 dxe4 22. Qxe4 Nd5 23. Rg3 Nc3 {½-½ Velker,W (2270)-Sanchez Carol,J (2229) ESP MT-Flores/D email 2018}) 13. Qd2 {[%emt 0:04:52][%cal Oc3d5]} Qb6 {[%emt 0:10:14]} 14. a5 {[%emt 0:06:01]} Qc7 {[%emt 0:00:10]} 15. Ba3 {[%emt 0:20:53]} Nc5 {[%emt 0:11:47]} 16. h3 {[%emt 0:10:26]} (16. b4 $5 {[%cal Rb4c5]}) 16... Rfd8 {[%emt 0:02:18]} 17. Qe3 {[%emt 0:02:29]} Bf8 {[%emt 0:03:20]} 18. Bxc5 {[%emt 0:16:00]} (18. Rec1 $11) 18... dxc5 $17 {[%emt 0:14:47] White is on the road to losing.} 19. Nf3 {[%emt 0:00:16]} Nd7 {[%emt 0:00:05][%cal Bf6d7,Bd7b8,Bb8c6,Bc6b4][%mdl 32]} 20. e5 {[%emt 0:00:42]} Nb8 {[%emt 0:00:09]} 21. Ne4 {[%emt 0:00:54]} Nc6 {[%emt 0:00:08][%csl LRa5,LRe5]} 22. Qc3 {[%emt 0:10:24]} h6 {[%emt 0:04:44]} 23. Re3 {[%emt 0:00:21]} Rd7 {[%emt 0:01:38]} 24. Ng3 {[%emt 0:00:46]} Rcd8 {[%emt 0:00:44]} 25. Kh2 {[%emt 0:00:19]} Nb4 {[%emt 0:06:12]} 26. Ne2 {[%emt 0:00:52]} (26. Kg1 $17) 26... Rd1 {[%emt 0:02:20]} ({Black should try} 26... g5 $19 27. Ng3 Rd3 28. Rxd3 Rxd3) 27. Nc1 {[%emt 0:00:32]} (27. Rxd1 $17 Rxd1 28. Nf4) 27... g6 $19 {[%emt 0:06:48]} 28. Re1 {[%emt 0:00:28]} Bg7 {[%emt 0:01:08]} 29. Ne2 $2 {[%emt 0:00:38]} (29. Rb1) 29... R1d3 {[%emt 0:02:59]} 30. Qc1 {[%emt 0:00:01] [#]} Rxf3 $1 {[%emt 0:00:41][%mdl 576] Remove Defender} 31. gxf3 {[%emt 0:00:06]} Bxe5+ {[%emt 0:00:06]} 32. Kg2 {[%emt 0:00:28]} Bxa1 {[%emt 0:00:10]} 33. Qxa1 {[%emt 0:00:13]} Nc2 {[%emt 0:00:05][%csl LRa1,LRe1]} 34. Qc3 {[%emt 0:00:05]} Nxe1+ {[%emt 0:00:06]} 35. Qxe1 {[%emt 0:00:02][%mdl 4096] Endgame KQR-KQN} Qe5 {[%emt 0:00:21]} 36. Qf1 {[%emt 0:00:11]} h5 {[%emt 0:01:26]} 37. Ng3 {[%emt 0:00:22]} Qg5 {[%emt 0:02:33] [#] Threatens to win with ...h4.} 38. Kh2 {[%emt 0:00:20]} Qf4 {[%emt 0:01:06][%cal Oh5h4] aiming for ...h4!} 39. Kg2 {[%emt 0:00:04]} f5 {[%emt 0:00:40]} 40. Qe2 {[%emt 0:00:00]} Kf7 {[%emt 0:00:00]} 41. Nf1 {[%emt 0:00:16]} Qd4 {[%emt 0:08:51]} 42. Qa2 {[%emt 0:01:21]} g5 {[%emt 0:01:16] And now ...Qd1 would win.} 43. Qe2 {[%emt 0:00:36]} g4 {[%emt 0:01:27]} 44. hxg4 {[%emt 0:00:06]} hxg4 {[%emt 0:00:24]} 45. Ng3 {[%emt 0:00:12]} Qd3 {[%emt 0:07:23]} 46. Qe5 {[%emt 0:02:06]} Qxf3+ {[%emt 0:00:24] Black mates.} 47. Kg1 {[%emt 0:00:08]} Rd1+ {[%emt 0:00:52]} 48. Nf1 {[%emt 0:00:06]} Qd3 {[%emt 0:00:48]} 49. Qc7+ {[%emt 0:00:08]} Kg6 {[%emt 0:00:17] Weighted Error Value: White=0.65/Black=0.30} 0-1